bitfinex-derivatives/quotes_BTCF0:USTF0_20250709
["timestamp","ask_amount","ask_price","bid_price","bid_amount"]
[1752072781762,0.92905772,108840.0,108830.0,0.30022305]
[1752072781957,0.92905772,108840.0,108830.0,0.24250241]
[1752072782162,0.92905772,108840.0,108830.0,0.05875261]
[1752072782364,0.93005772,108840.0,108830.0,0.03404261]
[1752072782563,0.93005772,108840.0,108830.0,0.21779231]
[1752072782759,0.5763329,108840.0,108830.0,0.24250231]
[1752072782955,0.0318,108840.0,108830.0,0.62552723]
[1752072783268,0.3608,108840.0,108830.0,0.62552723]
[1752072783469,0.6116293,108850.0,108840.0,0.1837329]
[1752072783768,0.250816,108850.0,108840.0,0.2235129]
[1752072784066,0.002,108850.0,108840.0,0.60563782]
[1752072784261,0.185716,108850.0,108840.0,0.60563782]
[1752072784465,0.185716,108850.0,108840.0,0.2862129]
[1752072784466,0.546516,108850.0,108840.0,0.2862129]
[1752072785064,0.002,108850.0,108840.0,0.60563782]
[1752072785467,0.546516,108850.0,108840.0,1.27087782]
[1752072785860,0.548516,108850.0,108840.0,0.9514529]
[1752072786262,0.74662492,108850.0,108840.0,0.2862129]
[1752072786463,0.610916,108850.0,108840.0,0.2862129]
[1752072787162,0.4272,108850.0,108840.0,0.2862129]
[1752072787866,0.610916,108850.0,108840.0,0.2862129]
[1752072788265,0.74662492,108850.0,108840.0,0.2862129]
[1752072788471,0.93034092,108850.0,108840.0,0.2552129]
[1752072788683,0.610916,108850.0,108840.0,0.2552129]
[1752072788883,0.93034092,108850.0,108840.0,0.2552129]
[1752072790379,0.4272,108850.0,108840.0,0.8896829]
[1752072790581,0.3959,108850.0,108840.0,1.20910782]
[1752072790785,0.3648,108850.0,108840.0,1.27290782]
[1752072791778,0.004,108850.0,108840.0,1.27290782]
[1752072792388,0.004,108850.0,108840.0,1.34827843]
[1752072795683,0.002,108850.0,108840.0,1.34827843]
[1752072796992,0.002,108850.0,108840.0,1.70907843]
[1752072797195,0.002,108850.0,108840.0,1.79150907]
[1752072797387,0.002,108850.0,108840.0,1.02885351]
[1752072797592,0.002,108850.0,108840.0,1.70907843]
[1752072797789,0.002,108850.0,108840.0,1.70883843]
[1752072798291,0.002,108850.0,108840.0,1.34803843]
[1752072798599,0.002,108850.0,108840.0,1.11104415]
[1752072799394,0.002,108850.0,108840.0,1.79126907]
[1752072799578,0.002,108850.0,108840.0,1.70883843]
[1752072802693,0.3608,108860.0,108850.0,0.1837161]
[1752072802888,0.3608,108860.0,108850.0,0.60665102]
[1752072803090,0.6059836,108870.0,108860.0,0.1836992]
[1752072803285,0.92540852,108870.0,108860.0,0.2246092]
[1752072803486,1.24483344,108870.0,108860.0,0.1836992]
[1752072803692,0.92540852,108870.0,108860.0,0.1836992]
[1752072804097,0.1836992,108860.0,108850.0,1.0433423]
[1752072804299,0.92642412,108860.0,108850.0,0.9974149]
[1752072804599,0.92642412,108860.0,108850.0,1.0118249]
[1752072805097,0.92642412,108860.0,108850.0,0.3472649]
[1752072805298,0.92642412,108860.0,108850.0,1.0117449]
[1752072806197,0.74272492,108860.0,108850.0,1.0117449]
[1752072806397,0.74272492,108860.0,108850.0,1.0137449]
[1752072806586,0.74272492,108860.0,108850.0,1.0147449]
[1752072807200,0.92642412,108860.0,108850.0,1.0147449]
[1752072807699,0.74272492,108860.0,108850.0,1.0147449]
[1752072808086,0.74272492,108860.0,108850.0,0.07471]
[1752072808087,0.92642412,108860.0,108850.0,0.07471]
[1752072808294,0.95979609,108860.0,108850.0,0.003]
[1752072808599,1.62415609,108860.0,108850.0,0.003]
[1752072808901,1.62415609,108860.0,108820.0,0.25366263]
[1752072808902,0.275603,108840.0,108820.0,0.25366263]
[1752072809196,0.68022492,108840.0,108830.0,0.2246598]
[1752072809497,0.89585782,108840.0,108830.0,0.2559598]
[1752072809698,0.92755782,108840.0,108830.0,0.2559598]
[1752072810596,0.92755782,108840.0,108830.0,0.2246598]
[1752072810803,0.92755782,108840.0,108830.0,0.2001598]
[1752072810994,0.1837498,108830.0,108820.0,1.06075623]
[1752072811194,0.56677472,108830.0,108820.0,1.12310773]
[1752072811400,0.38302492,108830.0,108820.0,1.12310773]
[1752072811696,0.56677472,108830.0,108820.0,0.45882773]
[1752072811992,0.0636,108830.0,108820.0,0.45882773]
[1752072812191,0.0636,108830.0,108820.0,0.45382773]
[1752072812392,0.0636,108830.0,108820.0,0.48672773]
[1752072812799,0.0636,108830.0,108820.0,0.48872773]
[1752072813298,0.2473496,108830.0,108820.0,0.41691773]
[1752072813606,0.6081496,108830.0,108820.0,0.45782773]
[1752072813802,0.92757452,108830.0,108820.0,0.45782773]
[1752072814603,0.92757462,108830.0,108820.0,0.45782773]
[1752072814898,0.74382492,108830.0,108820.0,0.45782773]
[1752072815103,0.92757462,108830.0,108820.0,0.45782773]
[1752072815297,0.4244,108830.0,108820.0,0.45782773]
[1752072815497,0.92757462,108830.0,108820.0,0.45782773]
[1752072815702,0.74382492,108830.0,108820.0,0.45782773]
[1752072818198,1.346596,108840.0,108830.0,0.1837497]
[1752072818199,1.02484,108840.0,108830.0,0.1837497]
[1752072818401,1.02484,108840.0,108830.0,0.2001597]
[1752072818596,0.69734,108840.0,108830.0,0.2246597]
[1752072818798,0.0333,108840.0,108830.0,0.54408462]
[1752072818997,0.03329674,108840.0,108830.0,0.57608462]
[1752072819198,0.03329674,108840.0,108830.0,0.60638462]
[1752072819504,0.03329674,108840.0,108830.0,0.2879597]
[1752072819706,0.03329674,108840.0,108830.0,0.2889597]
[1752072819901,0.39409674,108840.0,108830.0,0.2889597]
[1752072820101,0.71352166,108840.0,108830.0,0.2889597]
[1752072820297,0.96215446,108840.0,108830.0,0.2586597]
[1752072820606,0.77842166,108840.0,108830.0,0.2586597]
[1752072821006,0.96215446,108840.0,108830.0,0.1857497]
[1752072821308,0.96215446,108840.0,108830.0,0.2018597]
[1752072821505,0.92885772,108840.0,108830.0,0.2018609]
[1752072821698,0.92885772,108840.0,108830.0,0.01811]
[1752072822005,0.92885772,108840.0,108830.0,0.2048609]
[1752072822199,1.24828264,108840.0,108830.0,0.02111]
[1752072822394,0.92885772,108840.0,108830.0,0.002]
[1752072822599,0.92885772,108840.0,108830.0,0.001]
[1752072822807,0.92885772,108840.0,108830.0,0.002]
[1752072824106,0.92885772,108840.0,108830.0,0.185751]
[1752072825506,1.2731528,108840.0,108830.0,0.225131]
[1752072825804,1.59257772,108840.0,108830.0,0.225131]
[1752072826710,1.59257772,108840.0,108830.0,0.201861]
[1752072829612,1.59257772,108840.0,108830.0,0.01811]
[1752072830311,1.59237772,108840.0,108830.0,0.01811]
[1752072830610,1.94508449,108840.0,108830.0,0.002]
[1752072831111,1.91180264,108840.0,108830.0,0.002]
[1752072831503,1.94508486,108840.0,108830.0,0.002]
[1752072831704,1.91180264,108840.0,108830.0,0.002]
[1752072832304,1.94509196,108840.0,108830.0,0.002]
[1752072832505,2.12886191,108840.0,108830.0,0.002]
[1752072835409,0.64272417,108840.0,108830.0,0.2018598]
[1752072835610,0.64272417,108840.0,108830.0,0.2251298]
[1752072835611,0.39409127,108840.0,108830.0,0.2251298]
[1752072835818,0.3608,108850.0,108840.0,0.183734]
[1752072836013,0.57781686,108850.0,108840.0,0.57323892]
[1752072836210,1.05734086,108850.0,108840.0,0.60643892]
[1752072836411,1.24105686,108850.0,108840.0,0.287014]
[1752072836613,1.56048178,108850.0,108840.0,0.287014]
[1752072836814,1.56048178,108850.0,108840.0,0.263744]
[1752072837409,1.59288178,108850.0,108840.0,0.263744]
[1752072837712,1.59288178,108850.0,108840.0,0.08001]
[1752072838116,1.62368178,108850.0,108840.0,0.04931]
[1752072838311,1.62468178,108850.0,108840.0,0.04931]
[1752072838811,1.62468178,108850.0,108840.0,0.01611]
[1752072841214,1.62468178,108850.0,108830.0,0.16960064]
[1752072841416,0.86395772,108840.0,108830.0,0.34619044]
[1752072841617,0.89455772,108840.0,108830.0,0.34619044]
[1752072842010,0.89455772,108840.0,108830.0,0.36946044]
[1752072842416,0.89455772,108840.0,108830.0,0.37046044]
[1752072843114,0.89455772,108840.0,108830.0,0.37146044]
[1752072843920,0.86395772,108840.0,108830.0,0.37146044]
[1752072844320,0.86395772,108840.0,108830.0,0.37246044]
[1752072847826,0.68022492,108840.0,108830.0,0.37246044]
[1752072849225,0.86395852,108840.0,108830.0,0.37246044]
[1752072849617,1.18338344,108840.0,108830.0,0.34919044]
[1752072849818,1.24538344,108840.0,108830.0,0.34919044]
[1752072850012,0.92595852,108840.0,108830.0,0.34919044]
[1752072850419,0.92595852,108840.0,108830.0,0.31849044]
[1752072851217,1.37580338,108840.0,108830.0,0.2913398]
[1752072851614,1.05637846,108840.0,108830.0,0.2913398]
[1752072852019,1.37580338,108840.0,108830.0,0.2913398]
[1752072852627,1.55953698,108840.0,108830.0,0.2913398]
[1752072852828,1.37580338,108840.0,108830.0,0.2913398]
[1752072854130,1.55953718,108840.0,108830.0,0.2913398]
[1752072854429,1.37580338,108840.0,108830.0,0.2913398]
[1752072854929,1.34258492,108840.0,108830.0,0.37377044]
[1752072855723,0.08314269,108880.0,108870.0,0.1836826]
[1752072855922,1.3242,108890.0,108880.0,0.0459128]
[1752072856118,0.16628913,108920.0,108900.0,0.0459079]
[1752072856420,0.16628913,108920.0,108910.0,0.033]
[1752072856421,1.77582312,108920.0,108910.0,0.033]
[1752072856623,1.77582312,108920.0,108900.0,0.3939]
[1752072856624,3.0985618,108920.0,108900.0,0.3939]
[1752072856818,0.02391,108910.0,108890.0,0.4526233]
[1752072857017,1.64354492,108900.0,108890.0,0.5444488]
[1752072857218,1.32412,108900.0,108890.0,0.5444488]
[1752072857423,1.70514492,108900.0,108880.0,0.6670874]
[1752072857628,1.70514492,108900.0,108890.0,0.1836489]
[1752072857830,1.38572,108900.0,108890.0,0.1836489]
[1752072858532,1.38572,108900.0,108890.0,0.5588079]
[1752072858721,1.38572,108900.0,108890.0,0.5598079]
[1752072859832,1.5693527,108900.0,108890.0,0.28143854]
[1752072860033,1.40963,108900.0,108890.0,0.33637518]
[1752072860234,1.40963,108900.0,108890.0,0.64223854]
[1752072860435,1.40963,108900.0,108890.0,0.70787714]
[1752072861433,1.40963,108900.0,108890.0,0.6254465]
[1752072861635,2.23211254,108900.0,108890.0,0.0809976]
[1752072861834,2.70715162,108900.0,108890.0,0.0809976]
[1752072862134,2.70715162,108900.0,108890.0,0.2646472]
[1752072862535,2.70715162,108900.0,108890.0,0.015359]
[1752072862934,2.70715162,108900.0,108890.0,0.1990085]
[1752072863135,2.70715162,108900.0,108890.0,0.1846495]
[1752072863340,2.70715162,108900.0,108890.0,0.19900793]
[1752072864135,2.45715162,108900.0,108890.0,0.01535843]
[1752072865136,2.45715162,108900.0,108890.0,0.19900783]
[1752072865137,2.09635162,108900.0,108890.0,0.19900783]
[1752072865332,1.5932626,108900.0,108890.0,0.19900783]
[1752072865729,1.91268752,108900.0,108890.0,0.19900783]
[1752072866143,1.72905492,108900.0,108890.0,0.19900783]
[1752072866337,1.91268702,108900.0,108890.0,0.19900783]
[1752072866645,1.40963,108900.0,108890.0,0.19900783]
[1752072866845,1.5932632,108900.0,108890.0,0.19900783]
[1752072867047,1.40963,108900.0,108890.0,0.55980783]
[1752072867342,1.5932632,108900.0,108890.0,0.55980783]
[1752072867743,1.91268812,108900.0,108890.0,0.55980783]
[1752072867940,1.91268812,108900.0,108890.0,0.19900783]
[1752072870345,1.91268812,108900.0,108890.0,0.55980783]
[1752072870545,1.91268812,108900.0,108890.0,0.19900783]
[1752072871136,1.91268812,108900.0,108890.0,0.01535843]
[1752072871332,2.27348812,108900.0,108890.0,0.01535843]
[1752072872446,2.27348812,108900.0,108890.0,0.001]
[1752072873248,0.0918295,108890.0,108880.0,0.1836673]
[1752072873443,1.562149,108890.0,108880.0,0.53035123]
[1752072873649,1.562149,108890.0,108880.0,0.95445123]
[1752072874147,1.545849,108890.0,108880.0,0.93796123]
[1752072874349,1.569759,108890.0,108880.0,0.95445123]
[1752072874748,1.569759,108890.0,108880.0,0.95645123]
[1752072875639,1.569759,108890.0,108880.0,0.95845123]
[1752072876547,1.569759,108890.0,108880.0,0.97280912]
[1752072877839,1.545849,108890.0,108880.0,0.97280912]
[1752072878037,1.569759,108890.0,108880.0,0.97280912]
[1752072878452,1.569759,108890.0,108880.0,1.01390156]
[1752072878841,1.569759,108890.0,108880.0,0.69447664]
[1752072880746,1.569759,108890.0,108880.0,1.01390156]
[1752072881654,1.569759,108890.0,108880.0,0.83023426]
[1752072882052,1.569759,108890.0,108880.0,1.01390156]
[1752072882248,1.569759,108890.0,108880.0,0.51080934]
[1752072882554,1.91928392,108890.0,108880.0,0.49431934]
[1752072882739,1.94938392,108890.0,108880.0,0.43101934]
[1752072882945,2.31018392,108890.0,108880.0,0.07021934]
[1752072885654,2.31018392,108890.0,108880.0,0.07038426]
[1752072886446,2.31018392,108890.0,108880.0,0.07038436]
[1752072886651,2.31018392,108890.0,108880.0,0.12525566]
[1752072886857,2.31018392,108890.0,108880.0,0.07038436]
[1752072887365,2.49386392,108890.0,108880.0,0.07038436]
[1752072887746,2.31018392,108890.0,108880.0,0.07038436]
[1752072888057,2.49386392,108890.0,108880.0,0.07038436]
[1752072888263,2.31018392,108890.0,108880.0,0.029127]
[1752072888562,2.49386392,108890.0,108880.0,0.029127]
[1752072888754,2.31018392,108890.0,108880.0,0.029127]
[1752072890355,2.31018392,108890.0,108880.0,0.02913068]
[1752072891053,2.31018392,108890.0,108870.0,0.04125736]
[1752072891054,0.1836673,108880.0,108870.0,0.04125736]
[1752072891360,2.28614222,108880.0,108870.0,0.04125736]
[1752072891558,0.1836842,108870.0,108860.0,0.4808713]
[1752072891761,0.55051912,108870.0,108860.0,0.4808713]
[1752072891957,0.60539912,108870.0,108860.0,0.44323064]
[1752072892448,0.60539912,108870.0,108860.0,0.08243064]
[1752072892655,0.74317042,108870.0,108860.0,0.05505544]
[1752072892857,1.10397042,108870.0,108860.0,0.05505544]
[1752072893065,1.42339534,108870.0,108860.0,0.0963495]
[1752072893660,1.42339534,108870.0,108850.0,0.0963495]
[1752072893661,0.1837011,108860.0,108850.0,0.0963495]
[1752072893865,2.28917602,108860.0,108850.0,0.0963495]
[1752072894965,2.29850915,108860.0,108850.0,0.1003495]
[1752072895363,2.37234174,108860.0,108850.0,0.04529406]
[1752072895660,2.35683174,108860.0,108850.0,0.04529406]
[1752072896560,2.35683174,108860.0,108850.0,0.004]
[1752072900163,2.35683174,108860.0,108850.0,0.2042879]
[1752072900164,1.67604682,108860.0,108850.0,0.2042879]
[1752072900359,1.96237174,108860.0,108850.0,0.2042879]
[1752072900561,1.64286682,108860.0,108850.0,0.58551282]
[1752072900757,1.58578682,108860.0,108850.0,0.58551282]
[1752072900953,1.92959174,108860.0,108850.0,0.2660879]
[1752072901357,1.92025861,108860.0,108850.0,0.2660879]
[1752072901571,1.60083369,108860.0,108850.0,0.2660879]
[1752072902364,1.5270011,108860.0,108850.0,0.2660879]
[1752072902555,1.5270011,108860.0,108850.0,1.01220031]
[1752072902556,1.5026211,108860.0,108850.0,1.01220031]
[1752072902958,1.5026211,108860.0,108850.0,1.02297206]
[1752072903159,1.5026211,108860.0,108850.0,1.0780275]
[1752072903768,1.5026211,108860.0,108850.0,1.03681001]
[1752072904465,1.31892,108860.0,108850.0,1.11924065]
[1752072904657,0.3214706,108870.0,108860.0,0.1837007]
[1752072904853,0.9807106,108870.0,108860.0,1.04132904]
[1752072905064,0.9502959,108870.0,108860.0,1.07677041]
[1752072905261,0.9502959,108870.0,108860.0,1.03559243]
[1752072905854,0.9502959,108870.0,108860.0,1.04472237]
[1752072906055,0.2755459,108870.0,108860.0,1.04472237]
[1752072906269,0.9347059,108870.0,108860.0,1.12715301]
[1752072906667,0.9347059,108870.0,108860.0,1.12815301]
[1752072906865,0.8887819,108870.0,108860.0,1.128152]
[1752072907570,0.65916,108870.0,108860.0,1.07309656]
[1752072907968,0.65916,108870.0,108860.0,1.07409656]
[1752072908258,0.2755125,108880.0,108870.0,0.1836837]
[1752072908468,0.9345525,108880.0,108870.0,1.08005457]
[1752072908768,0.9500225,108880.0,108870.0,1.10472457]
[1752072908968,0.9345125,108880.0,108870.0,1.10472457]
[1752072909171,0.9500525,108880.0,108870.0,1.10472457]
[1752072909965,0.9500525,108880.0,108870.0,1.022359]
[1752072910171,0.9500525,108880.0,108870.0,1.0223589]
[1752072910365,0.9500525,108880.0,108870.0,1.03312878]
[1752072910673,0.9500525,108880.0,108870.0,0.50174038]
[1752072910865,1.26947742,108880.0,108870.0,0.51920154]
[1752072911066,1.30207742,108880.0,108870.0,0.51920154]
[1752072911273,1.33257742,108880.0,108870.0,0.51920154]
[1752072911469,1.33257742,108880.0,108870.0,0.48830154]
[1752072911770,1.33257742,108880.0,108870.0,0.49907188]
[1752072911973,1.69337742,108880.0,108870.0,0.10687188]
[1752072912267,1.79337742,108880.0,108870.0,0.10687188]
[1752072912466,1.79337742,108880.0,108870.0,0.0519615]
[1752072912864,1.79337742,108880.0,108870.0,0.01077034]
[1752072913065,0.1836836,108870.0,108860.0,0.45690154]
[1752072913261,0.56590852,108870.0,108860.0,0.46767195]
[1752072913873,1.24613344,108870.0,108860.0,0.05196157]
[1752072914274,1.26930344,108870.0,108860.0,0.05196157]
[1752072914575,1.26930344,108870.0,108860.0,0.01077092]
[1752072915167,1.36930344,108870.0,108860.0,0.01077092]
[1752072915368,1.36930344,108870.0,108860.0,0.01177092]
[1752072915771,1.36930344,108870.0,108860.0,0.001]
[1752072917775,1.36930344,108870.0,108860.0,0.002]
[1752072919379,1.36930344,108870.0,108860.0,0.01277201]
[1752072920080,1.36930344,108870.0,108860.0,0.002]
[1752072920277,1.3692468,108870.0,108860.0,0.01277227]
[1752072920482,1.3692468,108870.0,108860.0,0.002]
[1752072921178,0.63039696,108870.0,108860.0,0.002]
[1752072921482,1.26280188,108870.0,108860.0,0.01277202]
[1752072921882,1.62360188,108870.0,108860.0,0.01277202]
[1752072922577,1.9274868,108870.0,108860.0,0.01277202]
[1752072923374,1.9274868,108870.0,108860.0,0.01277194]
[1752072923976,1.60806188,108870.0,108860.0,0.01277194]
[1752072924185,1.9274868,108870.0,108860.0,0.01277194]
[1752072925075,3.1981268,108870.0,108860.0,0.002]
[1752072925678,2.87870188,108870.0,108860.0,0.002]
[1752072926478,2.51762188,108870.0,108860.0,0.01277159]
[1752072926682,1.45426696,108870.0,108860.0,0.89231721]
[1752072926879,1.45426696,108870.0,108860.0,0.95521721]
[1752072927085,2.11222696,108870.0,108860.0,0.95521721]
[1752072927687,2.11222696,108870.0,108860.0,0.97894721]
[1752072928386,2.11222696,108870.0,108860.0,1.0201634]
[1752072928590,1.45426696,108870.0,108860.0,1.0201634]
[1752072928788,2.11210696,108870.0,108860.0,1.0201634]
[1752072928978,2.11210696,108870.0,108860.0,0.70073848]
[1752072930587,2.11210696,108870.0,108860.0,0.49330778]
[1752072930887,2.14470696,108870.0,108860.0,0.67700848]
[1752072931188,2.14470696,108870.0,108860.0,0.49330778]
[1752072932886,2.14442696,108870.0,108860.0,0.49330778]
[1752072933188,2.14442696,108870.0,108860.0,0.67700848]
[1752072933883,2.14442696,108870.0,108860.0,0.66138848]
[1752072934074,2.16759696,108870.0,108860.0,0.67700848]
[1752072934782,2.16759696,108870.0,108860.0,0.49330778]
[1752072934982,2.16759696,108870.0,108860.0,0.67700848]
[1752072935683,2.16759696,108870.0,108860.0,0.63579229]
[1752072935887,2.16759696,108870.0,108860.0,0.67701792]
[1752072936590,2.16735696,108870.0,108860.0,0.7319283]
[1752072937690,2.16735696,108870.0,108860.0,0.5482276]
[1752072937891,2.16735696,108870.0,108860.0,0.69070267]
[1752072938083,1.48686696,108870.0,108860.0,0.69070267]
[1752072938392,2.11146696,108870.0,108860.0,0.69070267]
[1752072938595,1.45426696,108870.0,108860.0,0.69070267]
[1752072938787,2.11142696,108870.0,108860.0,1.17193027]
[1752072938988,2.11142696,108870.0,108860.0,1.0895647]
[1752072939689,2.11142696,108870.0,108860.0,1.17193027]
[1752072941388,2.11142696,108870.0,108860.0,0.58936754]
[1752072941588,2.13471696,108870.0,108860.0,0.77306824]
[1752072941788,2.13451696,108870.0,108860.0,0.77306824]
[1752072941988,2.11122696,108870.0,108860.0,1.19535027]
[1752072942582,2.1112438,108870.0,108860.0,1.19535027]
[1752072942788,2.1112038,108870.0,108860.0,1.14043989]
[1752072943494,2.1112038,108870.0,108860.0,1.1296683]
[1752072943695,2.1112038,108870.0,108860.0,1.1404382]
[1752072944498,1.92752,108870.0,108860.0,1.1404382]
[1752072944889,1.27064,108870.0,108860.0,1.1404382]
[1752072945088,0.2295775,108890.0,108880.0,0.1836669]
[1752072945397,0.2754694,108900.0,108890.0,0.1836501]
[1752072945591,0.2754694,108900.0,108890.0,1.03233203]
[1752072945592,0.9321894,108900.0,108890.0,1.03233203]
[1752072945798,0.9706094,108900.0,108890.0,0.63347]
[1752072946197,0.9706094,108900.0,108890.0,0.67470988]
[1752072946198,0.9554394,108900.0,108890.0,0.67470988]
[1752072946390,0.9706094,108900.0,108890.0,0.67470988]
[1752072946792,0.9705294,108900.0,108890.0,0.67470988]
[1752072947092,1.545957,108910.0,108900.0,0.1836332]
[1752072947299,1.545957,108910.0,108900.0,0.6226832]
[1752072947300,2.225847,108910.0,108900.0,0.6226832]
[1752072947499,2.225847,108910.0,108900.0,0.63345046]
[1752072947691,2.225847,108910.0,108900.0,0.67467338]
[1752072947994,1.4541445,108910.0,108900.0,0.69809338]
[1752072948199,2.1107045,108910.0,108900.0,1.08269479]
[1752072948387,2.1157045,108910.0,108900.0,0.68383276]
[1752072948792,1.4591445,108910.0,108900.0,0.68383276]
[1752072948985,2.1155845,108910.0,108900.0,0.68383276]
[1752072949294,2.1155845,108910.0,108900.0,0.67467338]
[1752072949697,2.1195845,108910.0,108900.0,0.67467338]
[1752072949900,2.1428745,108910.0,108900.0,0.67467338]
[1752072950296,2.1428745,108910.0,108900.0,0.66390612]
[1752072950497,2.1195845,108910.0,108900.0,0.66390612]
[1752072950796,2.1428745,108910.0,108900.0,0.98277421]
[1752072951098,2.1428745,108910.0,108900.0,0.99354077]
[1752072951501,2.1195845,108910.0,108900.0,1.06738438]
[1752072951892,2.1193445,108910.0,108900.0,1.06738438]
[1752072952092,2.1426345,108910.0,108900.0,1.05123438]
[1752072952292,2.1426345,108910.0,108900.0,1.05123395]
[1752072952892,2.1426345,108910.0,108900.0,0.73236586]
[1752072953094,2.1426345,108910.0,108900.0,0.74851586]
[1752072953401,2.1193445,108910.0,108900.0,0.74851586]
[1752072953999,2.1193445,108910.0,108900.0,1.06738395]
[1752072954189,2.1192245,108910.0,108900.0,1.06738395]
[1752072954387,1.27952,108910.0,108900.0,1.06738395]
[1752072954593,1.93556,108910.0,108900.0,1.06738395]
[1752072954794,1.27952,108910.0,108900.0,1.38625204]
[1752072954996,1.27952,108910.0,108900.0,1.06738395]
[1752072955190,1.93548,108910.0,108900.0,1.06738358]
[1752072955592,1.93548,108910.0,108900.0,1.06499717]
[1752072955793,1.93548,108910.0,108900.0,1.08841717]
[1752072956197,1.93548,108910.0,108900.0,1.40728526]
[1752072956408,1.9354,108910.0,108900.0,1.40728526]
[1752072956700,1.27952,108910.0,108900.0,1.17078274]
[1752072956909,1.9354,108910.0,108900.0,1.08841717]
[1752072957404,1.9354,108910.0,108900.0,1.40728526]
[1752072957604,1.27952,108910.0,108900.0,1.40728526]
[1752072957802,0.6648,108910.0,108900.0,1.48965083]
[1752072958202,0.6648,108910.0,108900.0,1.43466432]
[1752072958612,0.66476,108910.0,108900.0,1.43466432]
[1752072958906,0.65976,108910.0,108900.0,1.43466432]
[1752072959410,0.004,108910.0,108900.0,1.43466432]
[1752072959604,0.65964,108910.0,108900.0,1.43466432]
[1752072959806,0.65564,108910.0,108900.0,1.43466432]
[1752072961206,0.65564,108910.0,108900.0,1.48946029]
[1752072961802,0.65564,108910.0,108900.0,1.50887282]
[1752072964109,0.65564,108910.0,108900.0,1.45407685]
[1752072964509,0.67081,108910.0,108900.0,1.45407685]
[1752072964804,0.65564,108910.0,108900.0,1.45407685]
[1752072965510,0.67081,108910.0,108900.0,0.81634067]
[1752072965711,0.67081,108910.0,108900.0,1.47022685]
[1752072965910,0.67081,108910.0,108900.0,1.15135876]
[1752072966509,0.67081,108910.0,108900.0,1.47022685]
[1752072968410,0.0352,108920.0,108910.0,0.1836165]
[1752072968708,0.0352,108930.0,108920.0,0.1835997]
[1752072968915,0.8888728,108930.0,108920.0,0.98580576]
[1752072969206,0.05037,108930.0,108920.0,0.98580576]
[1752072969410,0.8888728,108930.0,108920.0,0.64351767]
[1752072969602,0.56805089,108930.0,108920.0,0.59626767]
[1752072969801,0.2885428,108930.0,108920.0,0.59626767]
[1752072970002,0.03150775,108990.0,108920.0,2.04962224]
[1752072970208,0.03659892,109020.0,108930.0,1.514756]
[1752072970403,0.55123849,109040.0,108980.0,0.95660427]
[1752072970404,0.10884066,109030.0,108980.0,0.95660427]
[1752072970605,1.37866306,109050.0,109040.0,0.1833975]
[1752072970803,1.37866306,109050.0,109040.0,0.5765975]
[1752072970804,1.3956672,109050.0,109040.0,0.5765975]
[1752072971001,1.39567005,109050.0,109040.0,1.32408486]
[1752072971206,1.1949525,109050.0,109040.0,0.89577738]
[1752072971400,1.10309722,109050.0,109040.0,1.37148663]
[1752072971600,1.10309722,109050.0,109040.0,0.74636484]
[1752072971807,1.10309722,109050.0,109040.0,1.54133956]
[1752072972002,1.10309722,109050.0,109040.0,1.48653623]
[1752072972314,1.10309722,109050.0,109040.0,1.45579728]
[1752072972514,1.10309722,109050.0,109040.0,1.12714513]
[1752072972715,1.10309722,109050.0,109040.0,1.08627112]
[1752072972915,1.10309722,109050.0,109040.0,1.58287738]
[1752072973117,1.10309722,109050.0,109040.0,1.07531162]
[1752072973408,1.10309722,109050.0,109040.0,1.46204637]
[1752072973613,0.05635,109060.0,109050.0,0.1833808]
[1752072973812,0.05635,109060.0,109050.0,1.13598856]
[1752072973813,0.78187,109060.0,109050.0,1.13598856]
[1752072974005,0.78187,109060.0,109050.0,1.13649006]
[1752072974211,0.77118063,109060.0,109050.0,1.09563507]
[1752072974613,1.16866799,109060.0,109050.0,0.51476691]
[1752072974914,0.04534063,109060.0,109050.0,0.41967415]
[1752072975217,0.77150063,109060.0,109050.0,0.41967415]
[1752072975716,0.80460063,109060.0,109050.0,0.60305445]
[1752072976016,1.20208799,109060.0,109050.0,0.42067415]
[1752072976211,0.98796403,109060.0,109050.0,0.42067415]
[1752072976512,0.98796403,109060.0,109050.0,0.40633762]
[1752072976714,0.80516063,109060.0,109050.0,0.40633762]
[1752072977111,0.98852383,109060.0,109050.0,0.40633762]
[1752072977306,0.98852383,109060.0,109050.0,0.58971772]
[1752072977307,1.21775799,109060.0,109050.0,0.58971772]
[1752072977512,0.82027063,109060.0,109050.0,0.58971772]
[1752072978017,0.10456,109060.0,109050.0,0.98720508]
[1752072978220,0.10456,109060.0,109050.0,0.9436659]
[1752072978221,0.83172,109060.0,109050.0,0.9436659]
[1752072979122,0.83148,109060.0,109050.0,0.9436659]
[1752072979512,0.10456,109060.0,109050.0,0.9866874]
[1752072979816,0.83136,109060.0,109050.0,0.54617854]
[1752072980012,0.83136,109060.0,109050.0,0.9776659]
[1752072980315,0.83136,109060.0,109050.0,0.9920859]
[1752072980316,0.02425,109060.0,109050.0,0.9920859]
[1752072980614,0.76644,109060.0,109050.0,0.65377846]
[1752072980818,0.7668,109060.0,109050.0,1.05126582]
[1752072981216,0.79936,109060.0,109050.0,1.05126582]
[1752072981616,0.77511,109060.0,109050.0,1.05126582]
[1752072981816,0.04771,109060.0,109050.0,1.32126582]
[1752072982418,0.78195,109070.0,109060.0,0.1833633]
[1752072982618,0.01511,109070.0,109060.0,0.98820066]
[1752072982819,0.01511,109070.0,109060.0,1.01980066]
[1752072983023,0.002,109080.0,109070.0,0.1833464]
[1752072983227,0.002,109080.0,109070.0,0.98183376]
[1752072983422,0.04801,109080.0,109070.0,0.61476334]
[1752072983637,0.002,109080.0,109070.0,1.0443522]
[1752072984011,0.002,109080.0,109070.0,1.0543522]
[1752072984318,0.004,109080.0,109070.0,1.4143522]
[1752072984522,0.004,109080.0,109070.0,1.5977122]
[1752072984816,0.002,109080.0,109070.0,1.5997122]
[1752072985621,0.002,109080.0,109070.0,1.6426488]
[1752072986027,0.002,109080.0,109070.0,1.6436488]
[1752072986622,0.002,109080.0,109070.0,1.6007122]
[1752072986821,0.002,109080.0,109070.0,1.20322484]
[1752072987022,0.002,109080.0,109070.0,1.6007122]
[1752072987524,0.002,109080.0,109070.0,1.20322484]
[1752072987715,0.002,109080.0,109070.0,1.16330484]
[1752072987912,0.002,109080.0,109070.0,1.5843622]
[1752072988120,0.0329,109090.0,109080.0,0.1833295]
[1752072988429,0.0329,109090.0,109080.0,2.80257253]
[1752072988620,0.0329,109090.0,109080.0,2.80307403]
[1752072989018,0.04801,109090.0,109080.0,2.80307403]
[1752072989216,0.0329,109090.0,109080.0,2.80307403]
[1752072990220,0.04801,109090.0,109080.0,2.80307403]
[1752072990828,0.01711,109090.0,109080.0,2.80307403]
[1752072991420,0.002,109090.0,109080.0,2.81029403]
[1752072992014,0.01711,109090.0,109080.0,2.81029403]